bitfinex/quotes_BTCUSD_20250101
["timestamp","ask_amount","ask_price","bid_price","bid_amount"]
[1735741929488,0.000171,93997.0,93989.0,0.02610619]
[1735741930536,0.000171,93997.0,93989.0,0.02310619]
[1735741930742,0.000171,93997.0,93989.0,0.02610619]
[1735741930940,0.000171,93997.0,93989.0,0.03510619]
[1735741931146,0.001,93990.0,93989.0,0.03510619]
[1735741931323,0.000171,93997.0,93989.0,0.02310619]
[1735741931626,0.001171,93997.0,93989.0,0.03010619]
[1735741932034,0.001171,93997.0,93993.0,0.023]
[1735741932830,0.000171,93997.0,93993.0,0.023]
[1735741933255,0.000171,93997.0,93991.0,0.023]
[1735741933540,0.000171,93997.0,93991.0,0.12698632]
[1735741934175,0.000171,93997.0,93993.0,0.002]
[1735741934435,0.000171,93997.0,93994.0,0.31676532]
[1735741934630,0.000171,93997.0,93995.0,0.023]
[1735741934871,0.000171,93997.0,93996.0,0.12698632]
[1735741936994,0.000171,93997.0,93996.0,0.023]
[1735741937198,0.000171,93997.0,93996.0,0.025]
[1735741937798,0.000171,93997.0,93996.0,0.03]
[1735741943539,1.22007642,93997.0,93996.0,0.007]
[1735741943751,2.29350483,93997.0,93996.0,0.007]
[1735741943945,2.34748983,93997.0,93996.0,0.007]
[1735741944510,0.362788,93990.0,93989.0,1.9e-07]
[1735741944714,0.69539782,93990.0,93989.0,1.9e-07]
[1735741944918,0.72548253,93990.0,93989.0,1.9e-07]
[1735741945263,0.82946885,93990.0,93989.0,1.9e-07]
[1735741945671,0.83846885,93990.0,93989.0,1.9e-07]
[1735741946074,0.212852,93962.0,93942.0,0.023]
[1735741946231,0.371451,93961.0,93959.0,0.00019621]
[1735741946435,0.327474,93961.0,93959.0,0.00019621]
[1735741946634,0.0621624,93960.0,93959.0,0.00019621]
[1735741946837,0.2121624,93960.0,93959.0,0.00019621]
[1735741947039,0.66568561,93960.0,93959.0,0.00019621]
[1735741947252,0.513507,93960.0,93959.0,0.00119621]
[1735741947429,0.433972,93960.0,93959.0,0.00119621]
[1735741947856,0.53795832,93960.0,93959.0,0.00019621]
[1735741948082,0.53795832,93960.0,93959.0,0.00219621]
[1735741948532,0.53795832,93960.0,93959.0,0.00019621]
[1735741948729,0.64194464,93960.0,93959.0,0.00019621]
[1735741948933,0.64394464,93960.0,93959.0,0.00019621]
[1735741949466,0.64694464,93960.0,93959.0,0.00019621]
[1735741950303,0.64894464,93960.0,93959.0,0.00019621]
[1735741950726,0.64694464,93960.0,93959.0,0.00019621]
[1735741950959,0.64194464,93960.0,93959.0,0.00019621]
[1735741951167,0.64494464,93960.0,93959.0,0.00019621]
[1735741951390,0.15,93948.0,93923.0,0.01845261]
[1735741951567,0.212917,93934.0,93923.0,0.00049374]
[1735741951791,0.15,93931.0,93923.0,0.00049374]
[1735741952103,0.15,93927.0,93923.0,0.00049374]
[1735741952400,0.362938,93924.0,93923.0,0.00049374]
[1735741952602,1.81646932,93924.0,93923.0,0.00049374]
[1735741952804,1.44647264,93924.0,93923.0,0.00049374]
[1735741952938,1.43630564,93924.0,93923.0,0.00049374]
[1735741953153,1.64924364,93924.0,93923.0,0.00049374]
[1735741953534,1.62533164,93924.0,93923.0,0.00049374]
[1735741953738,1.52234532,93924.0,93923.0,0.00049374]
[1735741954005,0.107369,93924.0,93923.0,0.00049374]
[1735741954206,0.106369,93924.0,93923.0,0.00049374]
[1735741954357,0.212938,93924.0,93923.0,0.00049374]
[1735741954551,0.484354,93924.0,93923.0,0.00049374]
[1735741954762,0.487354,93924.0,93923.0,0.00049374]
[1735741955058,0.484354,93924.0,93923.0,0.00049374]
[1735741955260,0.487354,93924.0,93923.0,0.00049374]
[1735741955463,0.484354,93924.0,93923.0,0.00049374]
[1735741955876,0.5612127,93924.0,93923.0,0.00049374]
[1735741956211,0.5622127,93924.0,93923.0,0.00049374]
[1735741956794,0.5612127,93924.0,93923.0,0.00049374]
[1735741957875,0.483354,93924.0,93923.0,0.00049374]
[1735741959672,0.484354,93924.0,93923.0,0.00049374]
[1735741960302,0.213938,93924.0,93923.0,0.00049374]
[1735741960463,0.214938,93924.0,93923.0,0.00049374]
[1735741960665,0.610379,93924.0,93923.0,0.00049374]
[1735741960891,0.54719573,93924.0,93923.0,0.00049374]
[1735741961327,0.495202,93924.0,93923.0,0.00049374]
[1735741961710,0.498202,93924.0,93923.0,0.00049374]
[1735741961919,0.001,93924.0,93923.0,0.00049374]
[1735741962116,0.0477,93953.0,93926.0,0.023]
[1735741962316,0.304069,93952.0,93927.0,0.10398632]
[1735741962491,0.212887,93947.0,93927.0,0.10398632]
[1735741962716,0.216971,93946.0,93928.0,0.023]
[1735741963053,0.216971,93946.0,93930.0,0.023]
[1735741963251,0.216971,93946.0,93932.0,0.023]
[1735741963384,0.2815448,93946.0,93932.0,0.023]
[1735741963581,0.187619,93945.0,93932.0,0.023]
[1735741963787,0.10459,93944.0,93932.0,0.023]
[1735741964007,0.139053,93946.0,93932.0,0.023]
[1735741964206,0.229293,93949.0,93932.0,0.023]
[1735741964497,0.419859,93948.0,93932.0,0.023]
[1735741964745,0.21288,93950.0,93932.0,0.023]
[1735741964746,0.111872,93947.0,93932.0,0.023]
[1735741964924,0.2130278,93960.0,93934.0,0.023]
[1735741965129,0.186241,93957.0,93936.0,0.023]
[1735741965339,0.004,93946.0,93938.0,0.023]
[1735741965541,0.212865,93956.0,93938.0,0.12698632]
[1735741966079,0.001,93947.0,93932.0,0.001]
[1735741966283,0.212901,93941.0,93926.0,0.023]
[1735741966476,0.212901,93941.0,93922.0,0.0499]
[1735741966477,0.212901,93941.0,93928.0,0.023]
[1735741966678,0.212901,93941.0,93938.0,0.001]
[1735741966840,0.212888,93946.0,93938.0,0.001]
[1735741967038,0.26048376,93946.0,93928.0,0.12698632]
[1735741967461,0.100255,93945.0,93928.0,0.12698632]
[1735741967829,0.212892,93944.0,93928.0,0.12698632]
[1735741968188,0.217233,93943.0,93928.0,0.12698632]
[1735741968746,0.105967,93943.0,93928.0,0.12698632]
[1735741968955,0.03410219,93943.0,93928.0,0.12698632]
[1735741969487,0.212874,93953.0,93930.0,0.023]
[1735741969680,0.212874,93953.0,93932.0,0.023]
[1735741969864,0.213594,93952.0,93932.0,0.023]
[1735741970059,0.425753,93951.0,93932.0,0.023]
[1735741970263,0.562105,93951.0,93932.0,0.023]
[1735741970472,0.212881,93949.0,93932.0,0.023]
[1735741970684,0.195199,93948.0,93932.0,0.023]
[1735741971242,0.212885,93947.0,93932.0,0.023]
[1735741971458,0.312187,93946.0,93932.0,0.023]
[1735741971663,0.220244,93946.0,93932.0,0.023]
[1735741971867,0.182822,93946.0,93932.0,0.023]
[1735741972318,0.001,93948.0,93932.0,0.023]
[1735741972533,0.212881,93949.0,93932.0,0.023]
[1735741972735,0.001,93951.0,93932.0,0.12698632]
[1735741973326,0.001,93951.0,93925.0,0.293534]
[1735741973327,0.001,93951.0,93934.0,0.023]
[1735741973531,0.399411,93950.0,93925.0,0.0806]
[1735741973764,0.212883,93948.0,93927.0,0.023]
[1735741973967,0.212888,93946.0,93932.0,0.001]
[1735741974173,0.353489,93945.0,93933.0,0.023]
[1735741974958,0.418467,93947.0,93933.0,0.023]
[1735741975165,0.212883,93949.0,93935.0,0.023]
[1735741975391,0.21287,93954.0,93935.0,0.023]
[1735741975699,0.21287,93954.0,93937.0,0.023]
[1735741975913,0.0001708,93960.0,93939.0,0.023]
[1735741976130,0.212858,93959.0,93941.0,0.023]
[1735741976333,0.212858,93959.0,93941.0,0.12698632]
[1735741976544,0.0001708,93950.0,93943.0,0.023]
[1735741979638,0.0001708,93950.0,93942.0,0.0815]
[1735741979639,0.0001708,93950.0,93945.0,0.023]
[1735741979873,0.0001708,93950.0,93945.0,0.12698632]
[1735741980368,0.0001708,93950.0,93947.0,0.023]
[1735741980569,0.0001708,93950.0,93949.0,0.023]
[1735741981008,0.0011708,93950.0,93949.0,0.023]
[1735741981432,0.0001708,93950.0,93942.0,0.0815]
[1735741981636,0.0011708,93950.0,93942.0,0.10398632]
[1735741981838,0.0001708,93950.0,93943.0,0.023]
[1735741982239,0.0011708,93950.0,93943.0,0.023]
[1735741982440,0.0001708,93950.0,93943.0,0.023]
[1735741983176,0.17581558,93949.0,93933.0,0.0815]
[1735741983425,0.364841,93948.0,93943.0,0.001]
[1735741983625,0.371824,93949.0,93943.0,0.001]
[1735741983843,0.394264,93949.0,93943.0,0.001]
[1735741984044,0.212885,93947.0,93943.0,0.001]
[1735741984277,0.21289,93945.0,93943.0,0.001]
[1735741984451,0.502029,93944.0,93943.0,0.001]
[1735741984631,0.56962532,93944.0,93943.0,0.001]
[1735741984826,0.56962532,93944.0,93926.0,0.023]
[1735741985029,0.442777,93943.0,93928.0,0.023]
[1735741985228,0.33168632,93942.0,93924.0,8.54e-05]
[1735741985428,0.212932,93927.0,93924.0,8.54e-05]
[1735741985793,0.290635,93925.0,93924.0,8.54e-05]
[1735741986001,1.42005932,93925.0,93924.0,8.54e-05]
[1735741986188,1.91266632,93925.0,93924.0,8.54e-05]
[1735741986412,1.78249932,93925.0,93924.0,8.54e-05]
[1735741986615,1.88648564,93925.0,93924.0,8.54e-05]
[1735741986824,1.75995764,93925.0,93924.0,8.54e-05]
[1735741987029,1.257359,93925.0,93924.0,8.54e-05]
[1735741987233,0.913232,93925.0,93924.0,8.54e-05]
[1735741987790,0.212933,93926.0,93924.0,8.54e-05]
[1735741988577,0.212924,93930.0,93924.0,8.54e-05]
[1735741988839,0.212913,93935.0,93924.0,8.54e-05]
[1735741989219,0.005,93925.0,93924.0,8.54e-05]
[1735741989408,0.001,93926.0,93924.0,8.54e-05]
[1735741989610,0.212893,93944.0,93925.0,0.10398632]
[1735741989854,0.005,93930.0,93925.0,0.10398632]
[1735741990662,0.005,93930.0,93926.0,0.023]
[1735741990860,0.005,93930.0,93924.0,8.54e-05]
[1735741991056,0.003,93935.0,93924.0,8.54e-05]
[1735741991291,0.21292,93932.0,93924.0,8.54e-05]
[1735741991515,0.286406,93931.0,93924.0,8.54e-05]
[1735741991695,0.212931,93927.0,93924.0,8.54e-05]
[1735741991892,0.212935,93925.0,93924.0,8.54e-05]
[1735741992046,0.95904032,93925.0,93924.0,8.54e-05]
[1735741992240,1.44801132,93925.0,93924.0,8.54e-05]
[1735741992486,1.91690764,93925.0,93924.0,8.54e-05]
[1735741992689,1.57426664,93925.0,93924.0,8.54e-05]
[1735741992916,1.50312664,93925.0,93924.0,8.54e-05]
[1735741993268,1.50512664,93925.0,93924.0,8.54e-05]
[1735741993671,1.40073379,93925.0,93924.0,8.54e-05]
[1735741994358,1.40673379,93925.0,93924.0,8.54e-05]
[1735741994571,1.40473379,93925.0,93924.0,8.54e-05]
[1735741994751,1.39873379,93925.0,93924.0,8.54e-05]
[1735741994978,1.40173379,93925.0,93924.0,8.54e-05]
[1735741995392,1.39873379,93925.0,93924.0,8.54e-05]
[1735741995603,1.35580079,93925.0,93924.0,8.54e-05]
[1735741996009,1.30162079,93925.0,93924.0,8.54e-05]
[1735741996473,1.29862079,93925.0,93924.0,8.54e-05]
[1735741997573,1.29062079,93925.0,93924.0,8.54e-05]
[1735741997756,1.30162079,93925.0,93924.0,8.54e-05]
[1735741998168,1.29362079,93925.0,93924.0,8.54e-05]
[1735741998381,0.50605579,93925.0,93924.0,8.54e-05]
[1735741998594,0.51505579,93925.0,93924.0,8.54e-05]
[1735741998802,0.41106947,93925.0,93924.0,8.54e-05]
[1735741999636,0.42135147,93925.0,93924.0,8.54e-05]
[1735741999844,0.40763547,93925.0,93924.0,8.54e-05]
[1735742000899,0.47775212,93925.0,93924.0,8.54e-05]
[1735742001306,0.58173844,93925.0,93924.0,8.54e-05]
[1735742003848,0.51162179,93925.0,93924.0,8.54e-05]
[1735742004800,0.50962179,93925.0,93924.0,8.54e-05]
[1735742005201,0.50462179,93925.0,93924.0,8.54e-05]
[1735742005647,0.51062179,93925.0,93924.0,8.54e-05]
[1735742006546,0.40663547,93925.0,93924.0,8.54e-05]
[1735742006746,0.194107,93925.0,93924.0,8.54e-05]
[1735742006948,0.008,93925.0,93924.0,8.54e-05]
[1735742007124,0.003,93925.0,93924.0,8.54e-05]
[1735742007333,0.011,93925.0,93924.0,8.54e-05]
[1735742007542,0.161783,93925.0,93924.0,8.54e-05]
[1735742007736,0.531766,93925.0,93924.0,8.54e-05]
[1735742007939,0.7013145,93925.0,93924.0,8.54e-05]
[1735742008750,0.7013145,93925.0,93924.0,4.54e-05]
[1735742010185,0.605552,93925.0,93924.0,4.54e-05]
[1735742011002,0.6057228,93925.0,93924.0,4.54e-05]
[1735742013921,0.5901978,93925.0,93924.0,4.54e-05]
[1735742014415,0.2211058,93925.0,93924.0,4.54e-05]
[1735742014624,0.3352618,93925.0,93924.0,4.54e-05]
[1735742016491,0.2211058,93925.0,93924.0,4.54e-05]
[1735742017191,0.28580108,93925.0,93924.0,4.54e-05]
[1735742017414,0.63961008,93925.0,93924.0,4.54e-05]
[1735742017591,0.39463208,93925.0,93924.0,4.54e-05]
[1735742019629,0.3208998,93925.0,93924.0,4.54e-05]
[1735742019831,0.3178998,93925.0,93924.0,4.54e-05]
[1735742020207,0.3228998,93925.0,93924.0,4.54e-05]
[1735742020434,0.3148998,93925.0,93924.0,4.54e-05]
[1735742020718,0.3228998,93925.0,93924.0,4.54e-05]
[1735742020923,0.35156734,93925.0,93924.0,4.54e-05]
[1735742021096,0.3228998,93925.0,93924.0,4.54e-05]
[1735742027866,0.70808612,93925.0,93924.0,4.54e-05]
[1735742028071,0.74191091,93925.0,93924.0,4.54e-05]
[1735742028300,0.7118262,93925.0,93924.0,4.54e-05]
[1735742028508,0.81581252,93925.0,93924.0,4.54e-05]
[1735742028862,0.81007244,93925.0,93924.0,4.54e-05]
[1735742029431,0.81307244,93925.0,93924.0,4.54e-05]
[1735742029585,0.80707244,93925.0,93924.0,4.54e-05]
[1735742029784,0.15,93924.0,93923.0,1.4e-07]
[1735742029983,2.08911403,93924.0,93923.0,1.4e-07]
[1735742030214,0.36173803,93924.0,93923.0,1.4e-07]
[1735742030977,0.36973803,93924.0,93923.0,1.4e-07]
[1735742032009,0.37273803,93924.0,93923.0,1.4e-07]
[1735742032257,0.36897264,93924.0,93923.0,1.4e-07]
[1735742032777,0.2803997,93866.0,93865.0,0.06405026]
[1735742032978,2.99831502,93866.0,93865.0,0.06405026]
[1735742033359,2.99831502,93866.0,93863.0,0.06405026]
[1735742033360,0.2499997,93865.0,93863.0,0.06405026]
[1735742033568,2.67028674,93865.0,93863.0,0.06405026]
[1735742034404,0.0999997,93861.0,93860.0,0.21845373]
[1735742034609,1.95883602,93861.0,93860.0,0.21845373]
[1735742034817,1.95883602,93861.0,93816.0,0.213182]
[1735742034818,0.213083,93860.0,93816.0,0.213182]
[1735742035020,0.189808,93859.0,93834.0,0.023]
[1735742035222,0.213107,93850.0,93833.0,0.11357322]
[1735742035427,0.0999997,93843.0,93833.0,0.11357322]
[1735742035628,0.213112,93847.0,93833.0,0.11357322]
[1735742035834,0.15,93855.0,93834.0,0.023]
[1735742036010,0.213083,93861.0,93834.0,0.023]
[1735742036011,0.213101,93852.0,93834.0,0.023]
[1735742036428,0.3131217,93843.0,93834.0,0.023]
[1735742036631,0.213122,93843.0,93834.0,0.023]
[1735742036839,0.3131217,93843.0,93834.0,0.023]
[1735742037041,0.213122,93843.0,93834.0,0.023]
[1735742037450,0.213117,93846.0,93834.0,0.023]
[1735742037631,0.0999997,93843.0,93834.0,0.023]
[1735742037828,0.0999997,93856.0,93835.0,0.10398632]
[1735742038154,0.14313049,93877.0,93839.0,0.023]
[1735742038155,0.003,93843.0,93839.0,0.023]
[1735742038367,0.003,93843.0,93841.0,0.023]
[1735742038574,0.09542033,93871.0,93848.0,0.1]
[1735742038774,0.09542033,93871.0,93864.0,0.213074]
[1735742038974,0.09542033,93871.0,93864.0,0.34006032]
[1735742039177,0.09542033,93871.0,93864.0,0.12698632]
[1735742039383,0.09542033,93871.0,93870.0,0.46306]
[1735742039588,0.14313049,93875.0,93874.0,0.396]
[1735742039744,0.14313049,93875.0,93874.0,0.49998632]
[1735742039944,0.3129697,93910.0,93888.0,0.213017]
[1735742040262,0.21536558,93909.0,93890.0,0.023]
[1735742040385,0.199704,93908.0,93892.0,0.023]
[1735742040581,0.199704,93908.0,93888.0,0.213017]
[1735742040582,0.184927,93908.0,93894.0,0.023]
[1735742040791,0.3129697,93910.0,93896.0,0.023]
[1735742041868,0.3129697,93910.0,93896.0,0.02312172]
[1735742042071,0.3169697,93910.0,93896.0,0.02312172]
[1735742042527,0.3129697,93910.0,93896.0,0.02312172]
[1735742042726,0.3139697,93910.0,93896.0,0.00012172]
[1735742042933,0.212984,93904.0,93896.0,0.00012172]
[1735742043150,0.22122,93903.0,93896.0,0.00012172]
[1735742043358,0.212981,93905.0,93896.0,0.00012172]
[1735742043558,0.0999997,93907.0,93896.0,0.00012172]
[1735742043957,0.425957,93906.0,93896.0,0.00012172]
[1735742044162,0.0999997,93910.0,93896.0,0.00012172]
[1735742044363,0.0999997,93907.0,93896.0,0.00012172]
[1735742044565,0.002,93905.0,93896.0,0.00012172]
[1735742044778,0.0999997,93907.0,93896.0,0.00012172]
[1735742044978,0.0999997,93910.0,93896.0,0.00012172]
[1735742045176,0.212956,93917.0,93896.0,0.00012172]
[1735742045419,0.0999997,93910.0,93896.0,0.00012172]
[1735742045597,0.0999997,93907.0,93896.0,0.00012172]
[1735742045976,0.1009997,93907.0,93896.0,0.00012172]
[1735742046415,0.1039997,93907.0,93896.0,0.00012172]
[1735742046746,0.0999997,93918.0,93897.0,0.10398632]
[1735742046892,0.0001708,93910.0,93898.0,0.023]
[1735742047096,0.0001708,93910.0,93896.0,0.00012172]
[1735742047097,0.0001708,93910.0,93900.0,0.023]
[1735742047292,0.0001708,93910.0,93902.0,0.023]
[1735742047502,0.0001708,93910.0,93904.0,0.023]
[1735742047828,0.0001708,93910.0,93906.0,0.023]
[1735742050027,0.0011708,93910.0,93906.0,0.023]
[1735742050433,0.0001708,93910.0,93906.0,0.023]
[1735742050652,0.0011708,93910.0,93906.0,0.023]
[1735742051228,0.0011708,93910.0,93896.0,0.00012172]
[1735742051229,0.2141418,93910.0,93896.0,0.00012172]
[1735742051427,0.0011708,93910.0,93896.0,0.00012172]
[1735742051691,0.0011708,93910.0,93897.0,0.023]
[1735742052191,0.0011708,93910.0,93899.0,0.023]
[1735742052403,0.0001708,93910.0,93901.0,0.023]
[1735742052556,0.0001708,93910.0,93903.0,0.023]
[1735742052771,0.0011708,93910.0,93903.0,0.12698632]
[1735742052972,0.0001708,93910.0,93903.0,0.12698632]
[1735742053514,0.0011708,93910.0,93903.0,0.12698632]
[1735742054063,0.0021708,93910.0,93903.0,0.12698632]
[1735742056822,0.0001708,93910.0,93905.0,0.023]
[1735742057023,0.0001708,93910.0,93905.0,0.12698632]
[1735742057228,0.0011708,93910.0,93905.0,0.12698632]
[1735742057406,0.0011708,93910.0,93906.0,0.52994132]
[1735742057606,0.0011708,93910.0,93907.0,0.023]
[1735742057808,0.0011708,93910.0,93909.0,0.023]
[1735742058006,0.0011708,93910.0,93909.0,0.12698632]
[1735742058794,0.0011708,93910.0,93909.0,0.37698632]
[1735742059015,0.0021708,93910.0,93909.0,0.37698632]
[1735742059496,0.0001708,93910.0,93909.0,0.37698632]
[1735742059826,0.0011708,93910.0,93909.0,0.37698632]
[1735742060423,0.0001708,93910.0,93909.0,0.37698632]
[1735742061965,0.00496,93949.0,93924.0,0.335938]
[1735742062167,0.00496,93949.0,93924.0,0.66532432]
[1735742062370,0.00496,93949.0,93924.0,0.71492432]
[1735742063470,0.0011708,93925.0,93924.0,0.72392432]
[1735742063672,0.0021708,93925.0,93924.0,0.72792432]
[1735742063878,0.00496,93949.0,93948.0,0.235883]
[1735742064079,0.00496,93949.0,93948.0,0.51526932]
[1735742065130,0.00496,93949.0,93948.0,0.66639104]
[1735742065545,0.00496,93949.0,93948.0,0.71599104]
[1735742065767,0.00496,93949.0,93948.0,0.72099104]
[1735742066048,0.00496,93949.0,93948.0,0.71799104]
[1735742066347,0.00496,93949.0,93948.0,0.72699104]
[1735742066667,0.049371,93997.0,93959.0,0.462858]
[1735742066668,0.000171,93997.0,93959.0,0.462858]
[1735742066913,0.000171,93997.0,93993.0,0.212779]
[1735742067118,0.000171,93997.0,93996.0,0.023]
[1735742067323,0.000171,93997.0,93996.0,0.22698632]
[1735742068282,0.000171,93997.0,93996.0,0.12698632]
[1735742068283,0.00066531,93997.0,93996.0,0.12698632]
[1735742069258,0.00066531,93997.0,93996.0,0.12898632]
[1735742069585,0.00066531,93997.0,93996.0,0.002]
[1735742070013,0.11882859,93997.0,93996.0,0.005]
[1735742070217,0.23028659,93997.0,93996.0,0.005]
[1735742070743,0.21212301,93997.0,93996.0,0.005]
[1735742070926,0.21212301,93997.0,93996.0,0.002]
[1735742071240,0.212801,93985.0,93956.0,0.212863]
[1735742071563,0.212801,93985.0,93957.0,0.25398632]
[1735742071817,0.05255907,93984.0,93957.0,0.10398632]
[1735742072031,0.212804,93983.0,93958.0,0.023]
[1735742072226,0.212804,93983.0,93960.0,0.023]
[1735742072375,0.212804,93983.0,93962.0,0.023]
[1735742072558,0.212804,93983.0,93964.0,0.023]
[1735742072752,0.212804,93983.0,93956.0,0.312863]
[1735742072753,0.05024425,93982.0,93966.0,0.023]
[1735742073030,0.29362,93976.0,93951.0,0.212876]
[1735742073235,0.0808,93976.0,93952.0,0.10398632]
[1735742073418,0.212822,93975.0,93952.0,0.10398632]
[1735742073622,0.212827,93973.0,93952.0,0.10398632]
[1735742073827,0.21284,93968.0,93952.0,0.10398632]
[1735742073996,0.0999997,93972.0,93952.0,0.10398632]
[1735742074187,0.0808,93976.0,93953.0,0.023]
[1735742074550,0.0808,93976.0,93962.0,0.001]
[1735742074714,0.0808,93976.0,93966.0,0.001]
[1735742074921,0.0808,93976.0,93968.0,0.023]
[1735742075127,0.08129401,93976.0,93968.0,0.023]
[1735742075331,0.0999997,93972.0,93968.0,0.023]
[1735742076155,0.08129401,93976.0,93968.0,0.023]
[1735742076299,0.00249401,93976.0,93968.0,0.023]
[1735742076695,0.00249401,93976.0,93970.0,0.023]
[1735742077063,0.00249401,93976.0,93957.0,0.212863]
[1735742077064,0.0999997,93973.0,93941.0,0.0798]
[1735742077282,0.212849,93964.0,93942.0,0.10398632]
[1735742077502,0.212849,93964.0,93943.0,0.15]
[1735742077710,0.0811,93962.0,93944.0,0.10398632]
[1735742077919,0.0999997,93957.0,93944.0,0.10398632]
[1735742078364,0.212865,93956.0,93944.0,0.10398632]
[1735742078812,0.0999997,93957.0,93945.0,0.023]
[1735742078992,0.0999997,93957.0,93947.0,0.023]
[1735742079188,0.212865,93956.0,93949.0,0.023]
[1735742079396,0.0999997,93957.0,93949.0,0.023]
[1735742079626,0.0999997,93957.0,93951.0,0.023]
[1735742080282,0.212822,93975.0,93953.0,0.023]
[1735742080455,0.212822,93975.0,93955.0,0.023]
[1735742080614,0.212822,93975.0,93957.0,0.023]
[1735742080813,0.212822,93975.0,93959.0,0.023]
[1735742081212,0.425645,93975.0,93959.0,0.023]
[1735742081417,0.212822,93975.0,93957.0,0.023]
[1735742081969,0.213822,93975.0,93957.0,0.023]
[1735742082371,0.426645,93975.0,93957.0,0.023]
[1735742082589,0.213822,93975.0,93959.0,0.023]
[1735742083234,0.218822,93975.0,93959.0,0.023]
[1735742083433,0.218822,93975.0,93959.0,0.12698632]
[1735742083638,0.006,93975.0,93960.0,0.10398632]
[1735742083812,0.005,93975.0,93961.0,0.01039863]
[1735742083952,0.002,93975.0,93962.0,0.10398632]
[1735742084567,0.217824,93975.0,93962.0,0.10398632]
[1735742085125,0.212824,93975.0,93962.0,0.10398632]
[1735742085490,0.212807,93982.0,93962.0,0.10398632]
[1735742085871,0.002,93975.0,93963.0,0.03339863]
[1735742085999,0.002,93975.0,93965.0,0.023]
[1735742086388,0.003,93975.0,93965.0,0.023]
[1735742086824,0.0001706,93983.0,93965.0,0.023]
[1735742086825,0.212824,93974.0,93965.0,0.023]
[1735742087021,0.21281,93981.0,93965.0,0.023]
[1735742087461,0.0001706,93983.0,93964.0,0.10398632]
[1735742087670,0.0001706,93983.0,93965.0,0.03454803]
[1735742087884,0.0001706,93983.0,93967.0,0.023]
[1735742088081,0.0001706,93983.0,93967.0,0.12698632]
[1735742088356,0.212806,93982.0,93967.0,0.12698632]
[1735742088937,0.425612,93982.0,93967.0,0.12698632]
[1735742089480,0.04267826,93981.0,93967.0,0.12698632]
[1735742089675,0.214811,93980.0,93967.0,0.12698632]
[1735742089820,0.212811,93980.0,93967.0,0.12698632]
[1735742090228,0.04267826,93981.0,93967.0,0.12698632]
[1735742090482,0.215806,93982.0,93967.0,0.12698632]
[1735742090911,0.212806,93982.0,93967.0,0.12698632]
[1735742091156,0.002,93980.0,93967.0,0.12698632]
[1735742091533,0.212806,93982.0,93967.0,0.12698632]
[1735742091988,0.212816,93978.0,93967.0,0.12698632]
[1735742092189,0.04257946,93977.0,93967.0,0.12698632]
[1735742092508,0.04257946,93977.0,93962.0,0.00049401]
[1735742092719,0.0776,93971.0,93962.0,0.00049401]
[1735742092902,0.593453,93970.0,93962.0,0.00049401]
[1735742093113,0.212849,93963.0,93962.0,0.00049401]
[1735742093428,0.422647,93963.0,93962.0,0.00049401]
[1735742093832,0.212849,93963.0,93962.0,0.00149401]
[1735742094057,0.276702,93963.0,93962.0,0.00149401]
[1735742094268,0.455125,93963.0,93962.0,0.00149401]
[1735742094490,0.455125,93963.0,93962.0,0.00049401]
[1735742094904,0.461125,93963.0,93962.0,0.00149401]
[1735742095087,0.462125,93963.0,93962.0,0.00149401]
[1735742095520,0.461125,93963.0,93962.0,0.00149401]
[1735742096125,0.457125,93963.0,93962.0,0.00057931]
[1735742096320,0.278702,93963.0,93962.0,0.00057931]
[1735742096528,0.40053,93963.0,93962.0,0.00057931]
[1735742096887,0.40653,93963.0,93962.0,0.00157931]
[1735742097308,0.40053,93963.0,93962.0,0.00057931]
[1735742097509,0.40653,93963.0,93962.0,0.00157931]
[1735742098127,0.40453,93963.0,93962.0,0.00157931]
[1735742098557,0.40553,93963.0,93962.0,0.00157931]
[1735742099146,0.40453,93963.0,93962.0,0.00157931]
[1735742099364,0.40453,93963.0,93962.0,0.00057931]
[1735742099365,0.002,93963.0,93962.0,0.00057931]
[1735742099716,0.006,93963.0,93962.0,0.00057931]
[1735742100715,0.004,93963.0,93962.0,0.00057931]
[1735742101128,0.005,93963.0,93962.0,0.00057931]
[1735742102769,0.005,93963.0,93962.0,0.10456563]
[1735742102973,0.005,93963.0,93962.0,0.12756563]
[1735742103615,0.2129816,93980.0,93962.0,0.12756563]
[1735742103818,0.104377,93979.0,93962.0,0.12756563]
[1735742104237,0.21273583,93977.0,93962.0,0.12756563]
[1735742104891,0.2259836,93980.0,93962.0,0.12856563]
[1735742105104,0.0051706,93980.0,93962.0,0.34041563]
[1735742105303,0.0001706,93980.0,93963.0,0.12698632]
[1735742105512,0.0001706,93980.0,93964.0,0.023]
[1735742105690,0.004,93977.0,93969.0,0.023]
[1735742105890,0.004,93977.0,93971.0,0.023]
[1735742106266,0.004,93977.0,93973.0,0.023]
[1735742106480,0.004,93977.0,93975.0,0.023]
[1735742106688,0.007,93977.0,93976.0,0.50088835]
[1735742106902,0.0001706,93980.0,93977.0,0.235817]
[1735742107105,0.0001706,93980.0,93979.0,0.023]
[1735742107329,0.0041706,93980.0,93979.0,0.58979932]
[1735742107753,0.0001706,93980.0,93979.0,0.68979932]
[1735742107974,0.0001706,93980.0,93979.0,0.78812828]
[1735742108379,0.0001706,93980.0,93979.0,0.79712828]
[1735742109106,0.0001708,94004.0,93993.0,0.1]
[1735742109325,0.0001708,94004.0,93996.0,0.58976132]
[1735742109778,0.0001708,94004.0,94003.0,0.585759]
[1735742109982,0.0001708,94004.0,94003.0,0.77920188]
[1735742110391,0.0001708,94004.0,94003.0,0.7793236]
[1735742111397,0.0011708,94004.0,94003.0,0.7943236]
[1735742111538,0.0011708,94004.0,94003.0,0.7853236]
[1735742111946,0.0001708,94004.0,94003.0,0.7793236]
[1735742112752,0.0001708,94004.0,94003.0,0.76656704]
[1735742113353,0.0001708,94004.0,94003.0,0.77156704]
[1735742113561,0.0001708,94004.0,94003.0,0.78056704]
[1735742113765,0.0001708,94004.0,94003.0,0.76656704]
[1735742114184,0.0001708,94004.0,94003.0,0.78056704]
[1735742114510,0.0001708,94004.0,94003.0,0.82960563]
[1735742116042,8e-07,94004.0,94003.0,0.82960563]
[1735742116210,0.0002,94009.0,94008.0,0.562747]
[1735742116408,0.0002,94009.0,94008.0,0.68973332]
[1735742116613,0.0002,94009.0,94008.0,0.75986228]